bitfinex/quotes_ETHUSD_20250424
["timestamp","ask_amount","ask_price","bid_price","bid_amount"]
[1745481243985,0.8152,1752.1,1751.5,0.33816116]
[1745481244282,8.70730053,1752.2,1751.5,1.09046743]
[1745481244496,0.8285,1752.1,1751.5,1.09046743]
[1745481244926,0.8285,1752.1,1751.5,0.33816116]
[1745481245226,0.8285,1752.0,1751.5,0.33816116]
[1745481245408,5.061,1751.9,1751.5,0.33816116]
[1745481245616,0.7577,1751.8,1751.5,0.33816116]
[1745481245817,0.7577,1751.8,1751.5,1.09046743]
[1745481246419,0.7577,1751.8,1751.6,5.70888436]
[1745481246723,0.7577,1751.8,1751.7,0.75230627]
[1745481247032,0.7952,1752.1,1751.8,5.70837491]
[1745481247339,0.7952,1752.1,1751.7,9.46094055]
[1745481247487,0.7952,1752.1,1751.7,3.75230627]
[1745481247829,0.7952,1752.1,1751.7,9.46103898]
[1745481248013,0.7952,1752.1,1751.7,10.9778044]
[1745481248730,0.7952,1752.1,1751.8,5.70826549]
[1745481248930,0.8331,1752.3,1752.1,5.70728313]
[1745481249225,0.8331,1752.3,1752.1,6.4595894]
[1745481249640,4.569309,1752.5,1752.2,5.70711106]
[1745481249937,3.753709,1752.5,1752.3,5.70664916]
[1745481250141,3.753709,1752.5,1752.2,11.49329513]
[1745481250346,3.753709,1752.5,1752.2,9.45922435]
[1745481251700,3.753709,1752.5,1752.2,3.75230627]
[1745481251991,3.753709,1752.5,1752.3,0.768]
[1745481252289,0.8245,1752.7,1752.3,5.70678317]
[1745481253048,0.8245,1752.7,1752.3,5.70655115]
[1745481254539,0.8245,1752.7,1752.4,5.70624888]
[1745481254738,5.892,1752.9,1752.5,6.47900311]
[1745481255243,5.892,1752.9,1752.5,3.773]
[1745481255409,5.892,1752.9,1752.5,9.47884172]
[1745481255756,0.831,1752.9,1752.6,6.457907]
[1745481256642,0.8317,1753.1,1752.8,0.75230627]
[1745481256941,0.8317,1753.1,1752.8,6.45725628]
[1745481257134,0.8317,1753.1,1752.8,0.75230627]
[1745481258841,0.7817,1753.3,1752.8,1.51980627]
[1745481259040,0.7817,1753.3,1753.0,0.75230627]
[1745481259224,5.8417,1753.3,1752.8,7.22479145]
[1745481259431,5.8417,1753.3,1752.8,1.51980627]
[1745481259812,5.8417,1753.3,1752.8,2.54231447]
[1745481260021,5.8417,1753.3,1752.8,7.22473224]
[1745481260552,5.8417,1753.3,1752.8,12.9296938]
[1745481260700,5.8407,1753.3,1752.8,7.22473224]
[1745481262141,0.7817,1753.3,1752.8,7.22473224]
[1745481262347,25.58333895,1753.7,1753.0,0.75230627]
[1745481262348,0.7567,1753.6,1753.0,0.75230627]
[1745481262519,3.753709,1753.9,1753.5,0.8301]
[1745481262720,3.753709,1753.9,1753.6,0.75230627]
[1745481262913,3.753709,1753.9,1753.6,1.48081544]
[1745481263243,3.753709,1753.9,1753.6,6.4546756]
[1745481263504,3.753709,1753.9,1753.6,6.4546686]
[1745481263812,3.753709,1753.9,1753.8,0.75230627]
[1745481264010,3.753709,1753.9,1753.8,6.4542107]
[1745481264374,3.753709,1753.9,1753.8,0.75230627]
[1745481264515,3.753709,1753.9,1753.6,0.8042]
[1745481264871,3.753709,1753.9,1753.7,0.75230627]
[1745481265169,3.753709,1753.9,1753.8,5.70190443]
[1745481265327,3.753709,1753.9,1753.7,6.45431552]
[1745481265849,3.753709,1753.9,1753.8,5.70190443]
[1745481266531,3.753709,1753.9,1753.8,9.50610443]
[1745481266715,3.753709,1753.9,1753.8,11.10214643]
[1745481267273,0.7724,1754.6,1754.0,5.70115488]
[1745481267482,0.7724,1754.6,1754.0,5.70107087]
[1745481267646,0.7724,1754.6,1754.0,5.70102766]
[1745481267846,0.7724,1754.6,1754.1,5.70089573]
[1745481268197,0.7724,1754.6,1753.9,6.45369284]
[1745481268198,0.7724,1754.6,1754.0,5.70103419]
[1745481268681,0.7724,1754.6,1754.0,5.70115215]
[1745481269266,0.7724,1754.6,1753.9,6.45366146]
[1745481269576,0.7724,1754.6,1753.9,8.20922769]
[1745481271180,0.8177,1754.5,1753.9,1.75556623]
[1745481271486,0.8177,1754.5,1753.8,3.0]
[1745481271880,0.7717,1754.4,1753.8,3.0]
[1745481272094,0.7717,1754.3,1753.6,7.24832472]
[1745481272243,5.8457,1754.3,1753.6,7.24832472]
[1745481272573,5.074,1754.3,1753.6,1.54591041]
[1745481272783,0.7565,1754.1,1753.4,6.52691304]
[1745481273091,0.7565,1754.1,1753.4,9.5268339]
[1745481273259,0.7565,1754.1,1753.4,6.5268339]
[1745481273791,0.8072,1754.0,1753.3,6.45569486]
[1745481273942,5.70114675,1754.1,1753.3,6.45569486]
[1745481273943,5.074,1753.9,1753.3,6.45569486]
[1745481274144,0.8072,1753.8,1753.3,1.29841129]
[1745481274384,0.8072,1753.8,1753.2,0.8248]
[1745481275395,6.50916405,1753.8,1753.1,0.75230627]
[1745481275584,0.8272,1753.7,1753.1,0.75230627]
[1745481276083,0.8272,1753.7,1752.9,6.4570174]
[1745481276284,0.7943,1753.6,1752.9,0.75230627]
[1745481276483,0.7943,1753.6,1753.3,0.75230627]
[1745481276994,0.7943,1753.6,1753.1,12.16029672]
[1745481277217,0.7943,1753.6,1753.2,1.21602967]
[1745481279367,0.7943,1753.6,1753.3,6.45573994]
[1745481279690,0.7943,1753.6,1753.4,5.70319986]
[1745481280061,0.7618,1753.8,1753.5,6.45513959]
[1745481280972,0.7618,1753.8,1753.5,0.75230627]
[1745481281298,0.7618,1753.8,1753.5,1.39783615]
[1745481282095,0.7618,1753.8,1753.5,0.64552988]
[1745481283988,0.7618,1753.8,1753.5,6.34839944]
[1745481284498,0.7618,1753.8,1753.5,7.10054021]
[1745481285087,0.7618,1753.8,1753.6,5.70234847]
[1745481285282,5.074,1753.9,1753.6,7.79624204]
[1745481285887,0.61027841,1754.3,1753.8,0.7581]
[1745481285888,0.31259871,1754.3,1753.8,0.7581]
[1745481286124,0.31259871,1754.3,1753.9,6.45376828]
[1745481286328,0.8061,1754.5,1753.9,6.45376828]
[1745481286709,0.8061,1754.5,1754.1,5.70091032]
[1745481286913,0.8061,1754.5,1753.9,6.45369772]
[1745481287106,0.8061,1754.5,1753.9,7.74504908]
[1745481287306,0.8061,1754.5,1753.9,2.04365763]
[1745481287540,0.8061,1754.5,1753.9,7.74523375]
[1745481288034,0.8061,1754.5,1753.9,13.44661903]
[1745481288242,0.8061,1754.5,1753.9,1.29135136]
[1745481288442,0.8061,1754.5,1753.8,3.0]
[1745481288938,0.8061,1754.5,1753.8,6.45400429]
[1745481289132,0.8061,1754.5,1753.9,5.70135279]
[1745481289302,0.8061,1754.5,1754.1,5.70077698]
[1745481289505,0.8061,1754.5,1754.1,6.9161986]
[1745481289925,0.8061,1754.5,1754.2,5.70049903]
[1745481290124,0.8061,1754.5,1754.1,12.61683762]
[1745481290442,0.8061,1754.5,1754.2,5.70058396]
[1745481291269,0.8061,1754.5,1754.1,1.96772789]
[1745481291435,0.8061,1754.5,1754.1,1.21542162]
[1745481291646,0.8061,1754.5,1754.1,5.70089389]
[1745481292246,0.8061,1754.5,1754.0,3.0]
[1745481292874,0.8061,1754.5,1754.0,8.70111257]
[1745481294980,0.8061,1754.5,1754.0,3.0]
[1745481296433,0.8061,1754.5,1754.0,8.70117956]
[1745481296641,0.8061,1754.5,1754.0,10.14143244]
[1745481296865,0.8061,1754.5,1754.0,4.44025288]
[1745481298663,0.8061,1754.5,1754.0,1.44025288]
[1745481298865,0.7993,1754.4,1753.6,5.70246403]
[1745481299067,0.7993,1754.3,1753.6,5.70246403]
[1745481300106,0.8114,1754.1,1753.6,5.70246403]
[1745481300268,0.8114,1754.1,1753.6,1.28256542]
[1745481300460,0.8114,1754.1,1753.6,6.98510572]
[1745481300954,0.8114,1754.1,1753.6,1.28256542]
[1745481301168,0.8114,1754.1,1753.7,5.7020995]
[1745481301373,0.8114,1754.1,1753.7,5.70201826]
[1745481301611,0.8114,1754.1,1753.8,5.70187918]
[1745481302007,5.073,1754.2,1753.9,6.51727933]
[1745481302295,5.073,1754.2,1754.0,0.65172793]
[1745481302457,5.073,1754.2,1754.0,6.35283225]
[1745481302788,0.8074,1754.4,1754.1,5.70081719]
[1745481302994,0.8074,1754.4,1754.0,9.35282008]
[1745481303197,0.8074,1754.4,1754.0,9.35280032]
[1745481303487,0.8074,1754.4,1754.1,6.63618006]
[1745481303794,19.6344,1754.7,1754.2,5.70059505]
[1745481304291,19.6344,1754.7,1754.1,7.45172477]
[1745481304595,19.6344,1754.7,1754.1,7.45169326]
[1745481305291,18.827,1754.7,1754.2,5.70056374]
[1745481305470,18.827,1754.7,1754.2,1.3152257]
[1745481305471,0.7846,1754.6,1754.2,1.3152257]
[1745481307358,0.7846,1754.6,1754.1,6.51641323]
[1745481307554,0.7846,1754.6,1754.1,12.21720728]
[1745481307754,0.7846,1754.6,1754.1,6.51640145]
[1745481308196,0.7846,1754.6,1754.2,5.70056886]
[1745481308693,0.7846,1754.6,1754.2,5.70040473]
[1745481308901,0.7846,1754.6,1754.3,0.57004047]
[1745481309395,0.7846,1754.6,1754.3,6.27009021]
[1745481309700,5.8741,1754.8,1754.4,5.69979002]
[1745481309893,5.8741,1754.8,1754.5,5.69955267]
[1745481310094,5.055,1754.8,1754.6,5.69924843]
[1745481310296,5.055,1754.8,1754.5,11.39895318]
[1745481310499,5.055,1754.8,1754.6,1.13989532]
[1745481310687,5.055,1754.8,1754.5,5.69940051]
[1745481310996,5.055,1754.8,1754.4,6.53087566]
[1745481311302,5.055,1754.8,1754.3,6.27013597]
[1745481311303,0.7568,1754.7,1754.3,11.97015307]
[1745481311478,0.7568,1754.7,1754.3,6.27008574]
[1745481311969,0.7568,1754.7,1754.3,11.97018476]
[1745481312304,0.7568,1754.7,1754.4,1.19701848]
[1745481312695,0.7568,1754.7,1754.3,11.4001192]
[1745481313000,0.7568,1754.7,1754.3,5.70004527]
[1745481314807,0.7568,1754.7,1754.0,1.47332793]
[1745481315107,0.7557,1754.6,1754.0,9.45142851]
[1745481315312,0.7557,1754.6,1754.0,3.75028979]
[1745481315475,0.7557,1754.6,1754.0,9.4514097]
[1745481315872,0.7557,1754.6,1754.0,9.45136591]
[1745481316193,0.7557,1754.6,1754.1,5.70076384]
[1745481316399,0.7557,1754.6,1754.2,1.32036617]
[1745481316701,0.7557,1754.6,1754.2,7.0208142]
[1745481317222,0.7557,1754.6,1754.4,5.69985626]
[1745481317522,5.8182,1754.8,1754.4,5.69985626]
[1745481317818,5.8182,1754.8,1754.3,5.70013365]
[1745481317971,5.8182,1754.8,1754.4,0.57001337]
[1745481319275,5.8182,1754.8,1754.4,7.02024005]
[1745481319534,5.8182,1754.8,1754.4,12.72000458]
[1745481319678,5.8182,1754.8,1754.4,12.71979485]
[1745481319874,5.8182,1754.8,1754.4,7.02003032]
[1745481320082,5.8182,1754.8,1754.5,0.70200303]
[1745481320380,5.8182,1754.8,1754.5,6.40145179]
[1745481320602,5.055,1754.8,1754.5,0.70200303]
[1745481320818,5.055,1754.8,1754.5,6.40148229]
[1745481320976,5.055,1754.8,1754.5,0.70200303]
[1745481321378,5.055,1754.8,1754.4,1.32030316]
[1745481321379,0.809,1754.7,1754.4,1.32030316]
[1745481322983,0.809,1754.7,1754.4,0.57001337]
[1745481327300,0.809,1754.7,1754.4,6.26974505]
[1745481328730,0.809,1754.7,1754.4,7.02003484]
[1745481329936,0.809,1754.7,1754.4,1.32030316]
[1745481330395,0.809,1754.7,1754.4,7.02023882]
[1745481330597,0.809,1754.7,1754.4,1.32030316]
[1745481331533,0.809,1754.7,1754.4,7.02012595]
[1745481331707,0.809,1754.7,1754.5,0.7020126]
[1745481332630,5.055,1754.8,1754.5,6.40139196]
[1745481333814,5.055,1754.8,1754.6,5.6992966]
[1745481334139,5.055,1754.8,1754.5,6.40139196]
[1745481335545,0.8156,1754.9,1754.5,6.40139196]
[1745481335715,0.8156,1754.9,1754.6,0.6401392]
[1745481337746,0.8156,1754.9,1754.6,7.08960956]
[1745481337908,0.8156,1754.9,1754.6,1.39042899]
[1745481340648,0.8156,1754.9,1754.6,0.6401392]
[1745481342808,0.8156,1754.9,1754.5,0.7020126]
[1745481343151,0.8156,1754.9,1754.5,6.40163777]
[1745481343307,0.8156,1754.9,1754.6,0.75028979]
[1745481343512,5.053,1755.0,1754.6,6.44950798]
[1745481344144,5.053,1755.0,1754.6,0.75028979]
[1745481344347,5.053,1755.0,1754.6,1.21491834]
[1745481344503,5.053,1755.0,1754.5,5.69941108]
[1745481344707,0.7869,1754.9,1754.5,5.69941108]
[1745481345852,0.7869,1754.9,1754.4,7.83345136]
[1745481346348,0.7869,1754.9,1754.4,13.53317624]
[1745481346513,0.7869,1754.9,1754.4,7.83342804]
[1745481346713,0.7869,1754.9,1754.4,1.38341337]
[1745481347333,0.7869,1754.9,1754.4,7.08335895]
[1745481348049,1.10026583,1754.9,1754.4,11.9697284]
[1745481348249,0.7791,1754.8,1754.2,4.57178979]
[1745481348429,0.7791,1754.8,1754.2,7.27235324]
[1745481348811,1.09246583,1754.8,1754.2,7.27235324]
[1745481349011,1.09246583,1754.8,1754.2,7.27224029]
[1745481349212,1.09246583,1754.8,1754.2,12.97263067]
[1745481349546,0.7791,1754.8,1754.2,14.26989374]
[1745481349751,0.7791,1754.8,1754.3,5.70027104]
[1745481350560,0.7791,1754.8,1754.4,6.45016842]
[1745481351136,0.31336583,1754.9,1754.6,5.69929428]
[1745481351339,0.31336583,1754.9,1754.6,6.44958407]
[1745481351540,0.31336583,1754.9,1754.6,2.04205542]
[1745481351741,0.31336583,1754.9,1754.6,7.74114746]
[1745481352321,5.8126,1755.0,1754.6,7.74114746]
[1745481352536,9.56267611,1755.0,1754.6,7.74114746]
[1745481354856,9.56267611,1755.0,1754.7,5.69897417]
[1745481355058,9.56267611,1755.0,1754.7,7.04298633]
[1745481355262,9.56267611,1755.0,1754.7,1.34401216]
[1745481355447,9.56267611,1755.0,1754.6,12.1484811]
[1745481355820,9.56267611,1755.0,1754.6,12.1485114]
[1745481356055,9.56267611,1755.0,1754.6,6.44938183]
[1745481356753,5.8126,1755.0,1754.6,6.44938183]
[1745481357264,5.8126,1755.0,1754.6,12.14853862]
[1745481357424,5.8126,1755.0,1754.7,6.9138154]
[1745481357827,5.053,1755.0,1754.7,6.9138154]
[1745481358159,0.31416292,1755.2,1755.1,9.47588104]
[1745481358462,3.75007611,1755.3,1755.2,5.69735642]
[1745481358654,3.75007611,1755.3,1755.2,7.28970915]
[1745481359759,3.75007611,1755.3,1755.2,1.59235273]
[1745481359963,3.75007611,1755.3,1755.2,7.28970915]
[1745481360470,3.75007611,1755.3,1755.2,10.28970915]
[1745481362456,0.7885,1755.7,1755.2,15.986835]
[1745481362635,0.7885,1755.7,1755.3,1.5986835]
[1745481363529,0.7885,1755.7,1755.3,12.99245124]
[1745481363855,0.7885,1755.7,1755.3,7.29548166]
[1745481364065,0.7885,1755.7,1755.3,1.5986835]
[1745481364223,0.7885,1755.7,1755.3,5.69691011]
[1745481364628,0.7885,1755.7,1755.2,8.69719417]
[1745481365665,0.7885,1755.7,1755.2,3.0]
[1745481365861,5.8093,1755.6,1755.2,3.0]
[1745481366064,5.8093,1755.6,1755.1,3.0]
[1745481366363,5.8093,1755.6,1755.1,3.9448082]
[1745481366575,0.8119,1755.5,1755.1,3.9448082]
[1745481366749,0.8119,1755.5,1754.8,6.44878917]
[1745481367062,0.8119,1755.5,1754.8,0.75028979]
[1745481367541,0.8119,1755.5,1754.8,6.44882204]
[1745481367737,5.8619,1755.5,1754.9,7.25863959]
[1745481367961,5.8619,1755.5,1754.9,13.76703056]
[1745481368169,5.8619,1755.5,1754.9,8.06900423]
[1745481368354,5.8619,1755.5,1755.0,5.69791137]
[1745481368697,5.8619,1755.5,1754.9,13.76711898]
[1745481368870,0.7618,1755.4,1754.9,0.75028979]
[1745481369624,0.7618,1755.4,1754.9,6.44861086]
[1745481370057,0.7618,1755.4,1754.9,0.75028979]
[1745481370775,0.7618,1755.4,1754.7,11.45629833]
[1745481371074,0.7618,1755.4,1754.8,5.69852162]
[1745481371570,0.7618,1755.4,1754.9,6.44841031]
[1745481371732,0.7618,1755.4,1754.9,12.14656085]
[1745481372070,0.7618,1755.4,1754.9,6.44841031]
[1745481372230,0.7618,1755.4,1755.0,5.69796857]
[1745481372433,0.7618,1755.4,1754.9,6.44841031]
[1745481372839,0.7618,1755.4,1755.1,5.69765853]
[1745481373040,0.7618,1755.4,1755.0,5.69785629]
[1745481373577,0.7618,1755.4,1754.9,7.83466889]
[1745481374479,0.7618,1755.4,1754.8,1.71548994]
[1745481374779,0.8176,1755.3,1754.7,7.24142576]
[1745481375081,0.8176,1755.3,1754.7,12.94017696]
[1745481375440,0.8176,1755.3,1754.7,7.24142576]
[1745481377279,0.8176,1755.3,1754.7,0.75028979]
[1745481377779,0.8176,1755.3,1754.7,6.44918275]
[1745481377972,0.8176,1755.3,1754.8,6.34347293]
[1745481378688,0.8176,1755.3,1754.8,0.64491828]
[1745481379849,0.8176,1755.3,1754.7,6.44922365]
[1745481380271,0.8176,1755.3,1754.7,12.14797765]
[1745481381005,0.8176,1755.3,1754.7,6.44904379]
[1745481382270,0.8176,1755.3,1754.7,0.75028979]
[1745481382471,0.8176,1755.3,1754.5,9.44975154]
[1745481382677,0.813,1755.2,1754.5,11.04912675]
[1745481383011,0.7608,1755.0,1754.5,11.04912675]
[1745481383185,0.7608,1755.0,1754.5,8.04912675]
[1745481383387,0.7608,1755.0,1754.5,2.349665]
[1745481383586,0.7608,1755.0,1754.5,6.44981165]
[1745481384110,0.7608,1755.0,1754.5,0.75028979]
[1745481384710,0.7608,1755.0,1754.3,6.45039857]
[1745481385014,0.7608,1755.0,1754.2,6.54467093]
[1745481385201,5.6981027,1755.0,1754.2,7.22498876]
[1745481385381,0.807,1754.9,1754.2,7.22498876]
[1745481385924,0.807,1754.8,1754.2,1.52454655]
[1745481386080,0.8166,1754.6,1754.1,12.15178459]
[1745481386276,0.8166,1754.6,1754.1,6.45099005]
[1745481386775,0.8166,1754.6,1754.2,5.70047387]
[1745481386975,0.8166,1754.6,1754.3,0.75028979]
[1745481387213,0.8166,1754.6,1754.5,0.75028979]
[1745481387375,5.051,1755.0,1754.7,5.69888229]
[1745481387590,0.8177,1754.9,1754.6,11.39837039]
[1745481387826,0.8177,1754.9,1754.6,5.69910657]
[1745481388707,0.8177,1754.9,1754.6,5.6990837]
[1745481389127,0.8177,1754.9,1754.6,11.39819035]
[1745481389315,0.8177,1754.9,1754.7,1.13981903]
[1745481389521,0.8177,1754.9,1754.6,5.6990837]
[1745481390703,0.8177,1754.9,1754.5,7.93897938]
[1745481391038,0.8177,1754.9,1754.3,1.54198979]
[1745481391200,0.8177,1754.9,1754.4,5.69978587]
[1745481391842,0.8177,1754.9,1754.3,7.24212994]
[1745481392145,0.8177,1754.9,1754.3,7.24204369]
[1745481392631,0.8177,1754.9,1754.3,6.45034369]
[1745481392798,0.8177,1754.9,1754.3,6.45053869]
[1745481392999,0.8177,1754.9,1754.3,7.96563046]
[1745481393306,0.8177,1754.9,1754.3,2.26538156]
[1745481393507,0.8177,1754.9,1754.3,0.75028979]
[1745481393707,0.8177,1754.9,1754.3,6.45056156]
[1745481395520,0.8177,1754.9,1754.3,6.45035153]
[1745481395836,0.8177,1754.9,1754.3,6.45034069]
[1745481396610,0.8177,1754.9,1754.5,6.44991716]
[1745481396812,0.8177,1754.9,1754.5,0.75028979]
[1745481398598,0.8177,1754.9,1754.5,7.09491063]
[1745481398818,0.8177,1754.9,1754.5,7.09470642]
[1745481399635,0.8177,1754.9,1754.5,7.09470333]
[1745481400439,0.8177,1754.9,1754.6,5.69916194]
[1745481400593,0.8177,1754.9,1754.5,7.09470333]
[1745481400800,0.8177,1754.9,1754.6,0.70947033]
[1745481402340,0.8177,1754.9,1754.6,6.40866582]
[1745481402768,5.8331,1755.1,1754.8,5.69865511]
[1745481403057,0.7821,1755.1,1754.8,5.69865511]
[1745481403267,0.7821,1755.1,1754.9,0.56986551]
[1745481403560,0.7821,1755.1,1754.8,5.69865511]
[1745481403561,0.7821,1755.1,1754.7,0.75028979]
[1745481405574,0.7821,1755.1,1754.6,0.70947033]
[1745481405735,0.7821,1755.1,1754.6,6.40876598]
[1745481406177,0.7821,1755.1,1754.5,0.64500325]
[1745481406471,5.05,1755.2,1754.4,0.75028979]
[1745481406472,0.7941,1755.0,1754.4,0.75028979]
[1745481407576,5.69827577,1755.0,1754.2,3.75028979]
[1745481407733,0.7783,1754.9,1754.2,0.75028979]
[1745481408082,5.8283,1754.8,1754.3,3.0]
[1745481408373,5.8283,1754.8,1754.3,8.70021833]
[1745481408537,0.7509,1754.7,1754.3,4.51508652]
[1745481409274,0.7509,1754.7,1754.3,10.21533568]
[1745481409473,0.7509,1754.7,1754.3,4.51508652]
[1745481410032,0.7509,1754.7,1754.3,10.21532502]
[1745481410372,0.7509,1754.7,1754.3,4.51508652]
[1745481410674,0.7509,1754.7,1754.3,7.2150739]
[1745481410861,0.7509,1754.7,1754.4,1.20179844]
[1745481412774,0.7509,1754.7,1754.4,6.90144048]
[1745481413576,0.7509,1754.7,1754.5,5.69960388]
[1745481413877,5.8169,1754.8,1754.6,6.44945199]
[1745481414076,5.8169,1754.8,1754.6,7.66434131]
[1745481414280,5.05,1755.1,1754.6,7.66434131]
[1745481414575,0.827,1755.0,1754.6,1.96517911]
[1745481414976,0.827,1755.0,1754.6,7.66443443]
[1745481415180,0.827,1755.0,1754.6,1.96517911]
[1745481416867,0.827,1755.0,1754.6,7.66439797]
[1745481417054,0.827,1755.0,1754.6,1.96517911]
[1745481418082,0.827,1755.0,1754.6,0.75028979]
[1745481419804,0.827,1755.0,1754.6,6.44959046]
[1745481420106,0.827,1755.0,1754.6,0.75028979]
[1745481420405,0.827,1755.0,1754.6,6.44953027]
[1745481421511,0.827,1755.0,1754.4,0.45150865]
[1745481421669,0.827,1755.0,1754.3,5.70000439]
[1745481422211,0.827,1755.0,1754.3,5.70026087]
[1745481422708,0.827,1755.0,1754.2,6.45066609]
[1745481423002,0.7724,1755.0,1754.2,6.45067924]
[1745481423309,0.7724,1755.0,1754.2,12.15105872]
[1745481423504,0.7724,1755.0,1754.3,1.21510587]
[1745481423828,0.7724,1754.9,1754.2,0.75028979]
[1745481424507,0.7724,1754.9,1754.2,6.45072496]
[1745481424718,0.7724,1754.9,1754.3,5.70023526]
[1745481424870,0.7724,1754.9,1754.2,6.45066519]
[1745481425282,0.7724,1754.9,1754.4,5.69983963]
[1745481425621,0.7724,1754.9,1754.5,0.56998396]
[1745481426709,0.7724,1754.9,1754.4,0.75028979]
[1745481427284,0.7724,1754.9,1754.5,5.69948302]
[1745481429228,0.7724,1754.9,1754.4,5.69979103]
[1745481432128,0.7724,1754.9,1754.5,5.69955191]
[1745481432419,0.7724,1754.9,1754.6,5.69921604]
[1745481432589,0.7724,1754.9,1754.7,0.5699216]
[1745481442564,0.7724,1754.9,1754.7,6.26888702]
[1745481443124,0.7724,1754.9,1754.7,0.5699216]
[1745481443463,0.7724,1754.9,1754.7,6.26887268]
[1745481445658,0.7724,1754.9,1754.7,6.242556]
[1745481446456,0.7724,1754.9,1754.8,0.6242556]
[1745481446655,0.7724,1754.9,1754.7,6.242556]
[1745481446883,0.8288,1755.0,1754.7,6.242556]
[1745481447985,5.8769,1755.1,1754.7,6.99955832]
[1745481448280,5.8769,1755.1,1754.8,5.69858183]
[1745481448485,0.8269,1755.2,1754.9,12.1465371]
[1745481448661,0.8269,1755.2,1754.9,6.44840201]
[1745481448862,0.8269,1755.2,1754.9,7.66308814]
[1745481449473,0.8269,1755.2,1754.9,13.36124617]
[1745481449879,0.8269,1755.2,1754.9,7.66308814]
[1745481450075,0.8269,1755.2,1754.9,1.21468613]
[1745481450505,0.8269,1755.2,1754.9,5.69830824]
[1745481450708,0.8269,1755.2,1754.8,5.69844214]
[1745481451072,0.8269,1755.2,1754.8,5.69842448]
[1745481451507,0.8269,1755.2,1754.9,5.69832089]
[1745481452112,0.8269,1755.2,1754.8,5.69842448]
[1745481452411,0.8269,1755.2,1754.8,12.7416698]
[1745481452705,0.8269,1755.2,1754.9,5.69831741]
[1745481454175,0.8269,1755.2,1754.9,5.69814629]
[1745481455320,0.8269,1755.2,1754.9,11.39627017]
[1745481455519,0.8269,1755.2,1754.9,0.75028979]
[1745481455813,5.843,1755.4,1755.0,5.69779451]
[1745481456204,5.843,1755.4,1755.0,7.12670294]
[1745481456390,5.843,1755.4,1755.0,12.82449346]
[1745481456586,5.843,1755.4,1755.3,5.69703184]
[1745481456913,5.045,1755.4,1755.2,5.69716703]
[1745481457612,0.8291,1755.5,1755.2,5.69716703]
[1745481458012,0.8291,1755.5,1755.2,11.39429971]
[1745481458317,0.8291,1755.5,1755.2,6.91159163]
[1745481459338,0.8291,1755.5,1755.3,5.69699528]
[1745481460014,24.6038,1755.6,1755.3,5.69699528]
[1745481460540,5.7998,1755.6,1755.3,5.69699528]
[1745481464743,5.7998,1755.6,1755.2,1.21445895]
[1745481464943,5.7998,1755.6,1755.3,5.69685776]
[1745481465242,5.7998,1755.6,1755.2,5.69715021]
[1745481465446,5.7998,1755.6,1755.2,11.39428542]
[1745481466343,5.7998,1755.6,1755.2,5.69713521]
[1745481467042,5.7998,1755.6,1755.1,8.69749001]
[1745481467341,5.7998,1755.6,1755.2,5.69732407]
[1745481471552,5.7998,1755.6,1755.1,10.27989896]
[1745481471715,5.7998,1755.6,1755.2,5.69724966]
[1745481471911,5.7998,1755.6,1754.8,1.62259539]
[1745481471912,0.7566,1755.5,1754.8,1.62259539]
[1745481472131,0.7566,1755.5,1754.9,11.39665408]
[1745481472315,0.7566,1755.5,1754.9,12.69857903]
[1745481472937,0.7566,1755.5,1755.0,5.69798572]
[1745481473119,0.7566,1755.5,1754.9,7.00010231]
[1745481473654,0.7566,1755.5,1754.9,7.00005896]
[1745481474221,0.7566,1755.5,1754.8,0.75028979]
[1745481474417,0.7566,1755.5,1754.8,6.44883478]
[1745481474657,0.7566,1755.5,1754.8,5.69854499]
[1745481474954,0.7566,1755.5,1754.8,11.39697284]
[1745481475120,0.7566,1755.5,1754.8,6.44871764]
[1745481475321,0.7566,1755.5,1754.9,5.69827814]
[1745481476056,0.7566,1755.5,1754.9,5.69818055]
[1745481476229,0.7566,1755.5,1754.9,5.69813895]
[1745481476634,0.7566,1755.5,1754.9,11.39628914]
[1745481476833,0.7566,1755.5,1754.9,11.39625958]
[1745481477145,0.7566,1755.5,1754.9,5.69812063]
[1745481477354,0.7566,1755.5,1755.0,5.69792073]
[1745481477554,0.7566,1755.5,1754.9,5.69810194]
[1745481477753,0.7566,1755.5,1755.0,5.69786749]
[1745481478168,0.7566,1755.5,1755.1,5.69757338]
[1745481478375,0.7566,1755.5,1755.0,6.44815058]
[1745481480456,0.7566,1755.5,1755.1,5.6976666]
[1745481480774,0.7566,1755.5,1755.1,11.39518258]
[1745481480970,0.7566,1755.5,1755.1,6.98807322]
[1745481481839,0.7566,1755.5,1755.2,5.69732236]
[1745481482669,0.7566,1755.5,1755.1,6.9880456]
[1745481483277,0.7566,1755.5,1755.1,12.68549867]
[1745481483474,0.7566,1755.5,1755.2,6.447379]
[1745481483784,5.34244331,1755.6,1755.2,6.447379]
[1745481483785,5.045,1755.6,1755.4,5.6967073]
[1745481484135,0.8139,1755.7,1755.4,1.57968979]
[1745481484393,0.8139,1755.7,1755.5,5.69614077]
[1745481484531,0.7707,1755.8,1755.5,11.3923064]
[1745481484741,0.7707,1755.8,1755.6,1.13923064]
[1745481484955,0.7707,1755.8,1755.5,5.69614077]
[1745481486951,0.7707,1755.8,1755.5,11.3923188]
[1745481487280,0.7707,1755.8,1755.5,5.69614077]
[1745481488875,0.7707,1755.8,1755.5,11.39231377]
[1745481489079,0.7707,1755.8,1755.5,5.69614077]
[1745481489308,0.7707,1755.8,1755.6,0.56961408]
[1745481490110,0.7707,1755.8,1755.6,6.26560817]
[1745481490313,0.7707,1755.8,1755.6,0.56961408]
[1745481490872,0.7707,1755.8,1755.6,6.26563452]
[1745481491713,5.818,1756.0,1755.6,6.26546746]
[1745481491896,5.818,1756.0,1755.6,12.71158948]
[1745481492102,5.818,1756.0,1755.7,1.27115895]
[1745481492301,0.29733943,1756.2,1755.9,0.7944]
[1745481492520,0.774,1756.3,1756.0,0.75028979]
[1745481493712,0.774,1756.3,1755.9,6.48939322]
[1745481494008,0.774,1756.3,1755.9,12.18413119]
[1745481494223,0.774,1756.3,1756.0,1.21841312]
[1745481495026,0.774,1756.3,1755.8,6.44549866]
[1745481495173,0.774,1756.3,1755.8,0.75028979]